bitfinex/quotes_ETHUSD_20240825
["timestamp","ask_amount","ask_price","bid_price","bid_amount"]
[1724594418597,1.89168144,2769.4,2768.8,2.2962]
[1724594419195,6.04479,2769.3,2768.8,2.2962]
[1724594419376,7.93647144,2769.3,2768.7,3.6117]
[1724594419917,11.54758144,2769.3,2768.7,3.6117]
[1724594420285,7.93647144,2769.3,2768.7,3.6117]
[1724594421011,3.61116,2769.2,2768.7,3.6117]
[1724594421167,7.93647144,2769.3,2768.7,3.6117]
[1724594421508,7.93647144,2769.3,2768.6,2.2962]
[1724594421509,3.61116,2769.2,2768.6,2.2962]
[1724594421683,1.89168144,2769.2,2768.3,3.61223]
[1724594421872,1.89168144,2769.1,2768.3,5.90843]
[1724594422076,3.61155,2768.9,2768.3,9.52068]
[1724594422264,3.61155,2768.9,2768.3,5.90843]
[1724594422808,3.61167,2768.8,2768.3,2.2962]
[1724594423011,3.61167,2768.8,2768.2,3.61237]
[1724594424168,8.68685404,2768.9,2768.2,3.61237]
[1724594424169,6.79511014,2768.9,2768.2,3.61237]
[1724594424370,10.40675014,2768.9,2768.2,3.61237]
[1724594424675,3.61168,2768.8,2768.2,3.61237]
[1724594429318,5.50328032,2769.0,2768.3,3.6123]
[1724594429489,5.50328032,2769.0,2768.4,2.2641]
[1724594429687,1.89176032,2769.0,2768.4,2.2641]
[1724594429908,1.89176032,2769.1,2768.6,3.6119]
[1724594430106,9.35176032,2769.2,2768.6,3.6119]
[1724594430480,12.96293032,2769.2,2768.6,3.6119]
[1724594430714,15.98698838,2769.2,2768.6,3.6119]
[1724594431791,7.22268,2769.1,2768.4,5.87618]
[1724594432492,9.11444032,2769.1,2768.4,5.87618]
[1724594432703,7.22268,2769.1,2768.4,5.87618]
[1724594432906,9.11449419,2769.1,2768.4,5.87618]
[1724594433219,7.22268,2769.1,2768.4,5.87618]
[1724594433721,9.11449419,2769.1,2768.4,5.87618]
[1724594433894,9.11448419,2769.1,2768.4,5.87618]
[1724594434088,5.50310419,2769.1,2768.4,9.48829]
[1724594434298,5.50310419,2769.1,2768.5,3.61206]
[1724594434503,3.61129,2769.1,2768.5,3.61206]
[1724594435176,7.22266,2769.1,2768.5,3.61206]
[1724594435377,3.61129,2769.1,2768.5,3.61206]
[1724594435824,5.50310419,2769.1,2768.5,3.61206]
[1724594437427,0.06291052,2769.0,2768.5,3.61206]
[1724594438401,3.61168,2768.8,2768.2,2.2641]
[1724594439729,2.2721,2768.9,2768.2,2.2641]
[1724594440212,2.2721,2768.9,2768.3,3.61221]
[1724594440637,2.2721,2768.9,2768.3,7.22446]
[1724594440837,2.2721,2768.9,2768.4,3.61219]
[1724594442433,7.77598727,2768.9,2768.2,5.87645]
[1724594442592,7.77630093,2768.9,2768.2,5.87645]
[1724594443020,7.77630093,2768.9,2768.3,3.61229]
[1724594444528,5.50439093,2768.8,2768.1,3.61247]
[1724594444708,3.61195,2768.6,2768.1,3.61247]
[1724594444919,7.84904093,2768.7,2768.1,3.61247]
[1724594445527,7.84904093,2768.7,2768.2,3.6124]
[1724594445528,4.23757885,2768.7,2768.2,3.6124]
[1724594445851,2.3446,2768.7,2768.2,3.6124]
[1724594446720,2.3446,2768.7,2768.3,3.61231]
[1724594447046,2.3446,2768.7,2768.2,2.3628]
[1724594447946,4.23754649,2768.7,2768.1,3.61245]
[1724594448399,7.84936649,2768.7,2768.1,3.61245]
[1724594449546,7.84936649,2768.7,2768.1,7.22495]
[1724594450040,7.84936649,2768.7,2768.1,3.61245]
[1724594450403,5.95642,2768.7,2768.1,3.61245]
[1724594450641,7.84971437,2768.7,2768.1,8.183762]
[1724594451652,7.84971437,2768.7,2768.1,4.571252]
[1724594452316,7.84974583,2768.7,2768.1,8.183762]
[1724594452522,7.84974583,2768.7,2768.1,4.571252]
[1724594453050,4.23792583,2768.7,2768.1,4.571252]
[1724594453256,4.23792583,2768.7,2768.2,4.3058552]
[1724594453461,2.3446,2768.7,2768.2,4.3058552]
[1724594455312,5.9564,2768.7,2768.2,0.6934052]
[1724594455517,5.9564,2768.7,2768.1,3.61245]
[1724594455744,7.84972583,2768.7,2768.1,7.22495]
[1724594457243,7.84942375,2768.7,2768.1,7.22495]
[1724594457766,0.06292145,2768.6,2768.1,7.22495]
[1724594458358,0.06292145,2768.6,2768.1,3.61245]
[1724594459634,3.67486145,2768.6,2767.9,3.61272]
[1724594459959,2.3446,2768.5,2768.0,3.973912]
[1724594460164,2.3446,2768.5,2768.1,3.61258]
[1724594460566,2.3446,2768.5,2768.0,0.361272]
[1724594460567,0.06292145,2768.6,2768.5,9.58692]
[1724594460776,0.06292145,2768.6,2768.5,13.74898]
[1724594460925,2.2716285,2769.4,2769.3,3.61102]
[1724594460926,1.89302375,2769.4,2769.3,3.61102]
[1724594461125,1.89302375,2769.6,2769.3,3.61102]
[1724594461326,1.89302375,2769.8,2769.3,0.361102]
[1724594461542,2.40749994,2769.9,2769.7,3.61049]
[1724594461543,1.89302375,2769.9,2769.7,3.61049]
[1724594461838,1.95891025,2770.1,2769.8,3.61036]
[1724594462770,0.0658865,2770.1,2769.8,3.61036]
[1724594464061,0.0658865,2770.1,2769.8,3.61029]
[1724594464279,0.0658865,2770.1,2770.0,3.6101]
[1724594464842,0.0658865,2770.1,2770.0,4.387131]
[1724594466190,0.0658865,2770.1,2770.0,0.777031]
[1724594466390,0.0658865,2770.1,2769.9,4.16021]
[1724594467958,0.0658865,2770.1,2770.0,3.6101]
[1724594469179,0.0658865,2770.1,2769.8,3.61027]
[1724594469381,0.0658865,2770.1,2769.6,3.61053]
[1724594469694,0.0658865,2770.1,2769.9,3.61012]
[1724594469860,0.0658865,2770.1,2770.0,3.971112]
[1724594473106,0.0658865,2770.1,2770.0,0.361012]
[1724594473274,0.0658865,2770.1,2769.9,3.61012]
[1724594474212,0.0658865,2770.1,2770.0,3.6101]
[1724594474359,0.0658865,2770.1,2769.8,3.61023]
[1724594474561,0.0658865,2770.1,2769.9,0.62219715]
[1724594474759,0.0658865,2770.1,2769.9,4.23233715]
[1724594474969,0.0658865,2770.1,2769.9,4.58337372]
[1724594475387,0.0658865,2770.1,2770.0,3.6101]
[1724594475732,0.0658865,2770.1,2770.0,10.16789714]
[1724594478475,0.0658865,2770.1,2770.0,10.0957]
[1724594479107,0.0658865,2770.1,2770.0,4.1601]
[1724594482527,0.0658865,2770.1,2770.0,4.97946337]
[1724594484322,0.0658865,2770.1,2769.9,0.42323372]
[1724594484539,0.0658865,2770.1,2769.8,3.6103]
[1724594484698,0.0658865,2770.1,2769.9,0.55]
[1724594488261,0.0658865,2770.1,2769.9,4.16021]
[1724594490412,0.0658865,2770.1,2769.9,4.16015]
[1724594497362,0.0658865,2770.1,2769.9,4.16021]
[1724594505223,1.95586921,2770.1,2769.9,4.16021]
[1724594505428,1.95586921,2770.1,2769.4,5.96432]
[1724594505429,1.88998271,2770.0,2769.5,3.61064]
[1724594505652,2.3138,2770.0,2769.6,4.16062]
[1724594505856,4.20945231,2770.0,2769.6,4.16062]
[1724594506872,4.20945231,2770.0,2769.7,3.61048]
[1724594507028,4.20945231,2770.0,2769.6,0.55]
[1724594507324,4.20945231,2770.0,2769.6,4.1606]
[1724594507530,1.89565231,2769.9,2769.6,4.1606]
[1724594507725,1.89565231,2769.9,2769.5,3.61068]
[1724594507980,1.89565231,2769.9,2769.4,3.61087]
[1724594508127,5.92391,2770.0,2769.3,3.61095]
[1724594508128,1.89565231,2769.8,2769.3,3.61095]
[1724594508333,1.89565231,2769.8,2769.3,3.61094]
[1724594508589,1.89565231,2769.7,2769.3,3.61094]
[1724594508931,1.89565231,2769.7,2769.1,3.61121]
[1724594509170,1.89565231,2769.6,2769.3,3.61093]
[1724594509462,3.61037,2769.8,2769.3,3.61093]
[1724594509463,1.89565231,2769.7,2769.3,3.61093]
[1724594509681,1.89565231,2769.6,2769.3,3.61093]
[1724594509885,1.89565231,2769.7,2769.3,3.61093]
[1724594510267,1.89565231,2769.7,2769.1,3.61117]
[1724594510467,1.89565231,2769.7,2769.2,4.16107]
[1724594511300,1.89565231,2769.7,2769.3,3.611]
[1724594512008,0.06289223,2769.6,2769.3,3.611]
[1724594512305,1.89565231,2769.9,2769.5,3.61068]
[1724594512799,1.95854013,2769.8,2769.5,3.61068]
[1724594512956,1.95854013,2769.8,2769.5,3.61067]
[1724594513354,1.95767091,2769.8,2769.5,3.61067]
[1724594513493,0.06288782,2769.8,2769.5,3.61067]
[1724594514205,1.95767091,2769.8,2769.5,3.61067]
[1724594514505,1.95767091,2769.8,2769.3,7.67481805]
[1724594514708,1.95767091,2769.8,2769.4,3.61088]
[1724594518223,1.95698736,2769.8,2769.4,3.61088]
[1724594518583,0.06288782,2769.8,2769.4,3.61088]
[1724594520496,0.06288782,2769.8,2769.5,0.07221143]
[1724594520697,0.06288782,2769.8,2769.7,3.61049]
[1724594520914,1.89409954,2770.0,2769.7,3.61049]
[1724594521216,1.89409954,2770.0,2769.6,3.61052]
[1724594521586,1.89371241,2770.0,2769.6,3.61052]
[1724594521782,1.89371241,2770.0,2769.6,4.28769178]
[1724594522021,1.89371241,2770.0,2769.7,3.61049]
[1724594522407,1.89371241,2770.0,2769.6,0.67717178]
[1724594524090,1.89371241,2770.0,2769.6,4.28779178]
[1724594524689,1.89371241,2770.0,2769.6,0.67717178]
[1724594524889,1.89371241,2769.9,2769.4,3.61081]
[1724594525129,1.89371241,2769.9,2769.5,4.16074]
[1724594526090,1.89395401,2769.9,2769.5,4.16074]
[1724594527290,1.89395401,2769.9,2769.5,4.16069]
[1724594527488,1.89395401,2769.9,2769.5,4.9831488]
[1724594528539,1.89395401,2769.9,2769.6,3.6106]
[1724594529215,1.89390686,2769.9,2769.6,3.6106]
[1724594529637,1.89390686,2770.0,2769.6,3.6106]
[1724594531544,1.89395266,2770.0,2769.6,3.6106]
[1724594531743,1.89395266,2770.0,2769.6,4.46999188]
[1724594532639,1.89395266,2770.0,2769.6,0.85939188]
[1724594533759,5.50406266,2770.0,2769.6,0.85939188]
[1724594533959,1.89395266,2769.9,2769.5,0.55]
[1724594534313,7.93592266,2769.8,2769.3,0.45295805]
[1724594534517,7.93592266,2769.8,2769.4,0.55]
[1724594534922,1.89395266,2769.8,2769.4,0.55]
[1724594535260,1.89395266,2769.8,2769.4,1.24060181]
[1724594535623,1.89395266,2769.9,2769.5,3.61068]
[1724594535966,1.89395266,2769.9,2769.6,0.55]
[1724594536635,1.89404911,2769.9,2769.6,0.55]
[1724594537767,1.89412559,2769.9,2769.6,0.55]
[1724594538769,1.89412559,2769.9,2769.5,0.55]
[1724594539121,0.0658865,2770.1,2769.9,3.61017]
[1724594539351,0.0658865,2770.1,2770.0,6.5242956]
[1724594543495,0.0658865,2770.1,2770.0,10.1343956]
[1724594543662,0.0658865,2770.1,2770.0,13.7444956]
[1724594543861,0.0658865,2770.1,2770.0,15.11894516]
[1724594544066,0.0658865,2770.1,2770.0,18.11894516]
[1724594544998,0.0658865,2770.1,2770.0,21.72904516]
[1724594545199,0.0658865,2770.1,2770.0,22.06496195]
[1724594545359,6.5e-06,2770.1,2770.0,37.01164875]
[1724594545563,6.5e-06,2770.1,2770.0,37.01160508]
[1724594546174,6.5e-06,2770.1,2770.0,37.7632511]
[1724594546493,6.5e-06,2770.1,2770.0,36.93940948]
[1724594546697,6.5e-06,2770.1,2770.0,30.91547656]
[1724594546869,6.5e-06,2770.1,2770.0,21.85562686]
[1724594547312,6.5e-06,2770.1,2770.0,25.46572686]
[1724594550848,6.5e-06,2770.1,2770.0,25.12992956]
[1724594553109,6.5e-06,2770.1,2770.0,24.65617156]
[1724594554212,6.5e-06,2770.1,2770.0,25.09739025]
[1724594556255,2.3787583,2771.6,2770.0,18.62973687]
[1724594556458,2.3787583,2771.6,2771.5,3.60815]
[1724594556752,2.3787583,2771.6,2771.4,3.6082]
[1724594557451,2.3787583,2771.6,2771.5,3.60815]
[1724594558604,2.3787583,2771.6,2771.5,4.15815]
[1724594560214,2.3787583,2771.6,2771.4,3.6082]
[1724594561028,2.3787583,2771.6,2771.2,7.2169]
[1724594561756,0.0011562,2771.5,2771.2,7.2169]
[1724594562253,2.3776,2771.4,2771.2,7.2169]
[1724594562456,2.3776,2771.4,2771.3,3.60841]
[1724594565876,2.3776,2771.4,2771.3,4.330095]
[1724594566334,2.3776,2771.4,2771.3,3.60841]
[1724594567217,2.3776,2771.4,2771.3,7.21682]
[1724594569737,2.3776,2771.4,2771.3,3.60841]
[1724594570590,2.3776,2771.4,2771.3,3.55841]
[1724594572089,2.3776,2771.4,2771.0,3.60872]
[1724594573199,2.3776,2771.4,2771.2,3.60847]
[1724594573808,2.3776,2771.4,2771.0,3.6087]
[1724594574157,2.3776,2771.4,2771.1,3.60858]
[1724594574477,2.3776,2771.4,2771.2,3.60853]
[1724594576485,2.3776,2771.4,2771.0,3.60868]
[1724594577399,2.97627762,2771.4,2771.0,3.60868]
[1724594577705,2.4751,2771.3,2771.0,3.60868]
[1724594578004,2.4751,2771.3,2770.8,3.60897]
[1724594579289,2.4751,2771.3,2770.9,3.60886]
[1724594579676,2.4751,2771.3,2771.0,3.60878]
[1724594580460,3.6093262,2771.5,2771.4,3.60828]
[1724594580461,2.4762562,2771.5,2771.4,3.60828]
[1724594580720,0.0011562,2771.5,2771.4,7.76656]
[1724594581014,0.0011562,2771.5,2771.4,11.37484]
[1724594581161,0.0011562,2771.5,2771.4,17.30652]
[1724594581381,6.2e-06,2771.5,2771.4,22.037172]
[1724594581779,6.2e-06,2771.5,2771.4,36.865622]
[1724594581999,6.2e-06,2771.5,2771.4,34.813007]
[1724594582195,6.2e-06,2771.5,2771.4,27.750771]
[1724594583321,6.2e-06,2771.5,2771.4,20.534211]
[1724594583620,6.2e-06,2771.5,2771.4,18.428892]
[1724594587243,6.2e-06,2771.5,2771.4,14.820612]
[1724594587442,6.2e-06,2771.5,2771.4,12.497212]
[1724594588047,6.2e-06,2771.5,2771.4,16.105492]
[1724594588246,6.2e-06,2771.5,2771.4,12.497212]
[1724594588453,6.2e-06,2771.5,2771.4,9.497212]
[1724594588860,6.2e-06,2771.5,2771.4,13.105492]
[1724594589761,6.2e-06,2771.5,2771.4,9.497212]
[1724594589969,6.2e-06,2771.5,2771.4,7.76656]
[1724594592784,6.2e-06,2771.5,2771.4,11.37484]
[1724594592985,6.2e-06,2771.5,2771.4,7.76656]
[1724594593483,6.2e-06,2771.5,2771.4,11.37484]
[1724594596997,6.2e-06,2771.5,2771.4,7.76656]
[1724594597199,6.2e-06,2771.5,2771.4,8.543216]
[1724594598274,6.2e-06,2771.5,2771.4,7.993216]
[1724594598456,6.2e-06,2771.5,2771.4,7.21656]
[1724594599457,6.2e-06,2771.5,2771.4,20.312258]
[1724594599676,6.2e-06,2771.5,2771.4,19.960071]
[1724594599971,6.2e-06,2771.5,2771.4,18.136273]
[1724594600193,6.2e-06,2771.5,2771.4,18.686273]
[1724594600515,6.2e-06,2771.5,2771.4,20.9157493]
[1724594600931,6.2e-06,2771.5,2771.4,24.5240293]
[1724594601425,6.2e-06,2771.5,2771.4,20.9157493]
[1724594601625,6.2e-06,2771.5,2771.4,24.5240293]
[1724594601778,6.2e-06,2771.5,2771.4,20.9157493]
[1724594602282,6.2e-06,2771.5,2771.4,24.5240293]
[1724594602920,6.2e-06,2771.5,2771.4,20.9157493]
[1724594603707,6.2e-06,2771.5,2771.4,24.5240293]
[1724594604021,6.2e-06,2771.5,2771.4,20.9157493]
[1724594604809,6.2e-06,2771.5,2771.4,18.8567163]
[1724594605630,6.2e-06,2771.5,2771.4,22.4649963]
[1724594605921,6.2e-06,2771.5,2771.4,29.0925403]
[1724594606834,6.2e-06,2771.5,2771.4,25.4842603]
[1724594607031,6.2e-06,2771.5,2771.4,29.0925403]
[1724594607335,6.2e-06,2771.5,2771.4,32.7008203]
[1724594607623,6.2e-06,2771.5,2771.4,31.7202398]
[1724594608327,6.2e-06,2771.5,2771.4,35.7202398]
[1724594609007,6.2e-06,2771.5,2771.4,32.1119598]
[1724594609212,6.2e-06,2771.5,2771.4,35.7202398]
[1724594609778,6.2e-06,2771.5,2771.4,31.7202398]
[1724594610005,6.2e-06,2771.5,2771.4,30.97365721]
[1724594610209,6.2e-06,2771.5,2771.4,31.72255868]
[1724594610621,6.2e-06,2771.5,2771.4,28.1146028]
[1724594610930,6.2e-06,2771.5,2771.4,21.8442998]
[1724594611118,6.2e-06,2771.5,2771.4,17.93543321]
[1724594611985,6.2e-06,2771.5,2771.4,18.6846588]
[1724594612825,6.2e-06,2771.5,2771.4,19.2346588]
[1724594614614,6.2e-06,2771.5,2771.4,18.48543321]
[1724594614929,6.2e-06,2771.5,2771.4,21.4241948]
[1724594615452,6.2e-06,2771.5,2771.4,18.48543321]
[1724594616241,6.2e-06,2771.5,2771.4,22.1799388]
[1724594616415,6.2e-06,2771.5,2771.4,25.7882188]
[1724594616622,6.2e-06,2771.5,2771.4,22.17990364]
[1724594617100,6.2e-06,2771.5,2771.4,21.90869464]
[1724594617801,6.2e-06,2771.5,2771.4,21.27016364]
[1724594618435,6.2e-06,2771.5,2771.4,19.23462364]
[1724594619112,6.2e-06,2771.5,2771.4,18.48539805]
[1724594619913,6.2e-06,2771.5,2771.4,16.6043163]
[1724594620948,2.4704062,2771.5,2771.4,9.9960363]
[1724594621302,2.4704062,2771.5,2771.4,13.6043163]
[1724594621547,2.4712,2771.5,2771.4,9.9960363]
[1724594622958,2.4712,2771.5,2771.4,13.6043163]
[1724594623162,2.4712,2771.5,2771.4,9.9960363]
[1724594624948,0.0008,2771.5,2771.4,13.6043163]
[1724594627873,0.0008,2771.5,2771.4,9.9960363]
[1724594628065,0.0008,2771.5,2771.4,7.76656]
[1724594628744,2.3931,2771.5,2771.4,7.76656]
[1724594630311,2.3931,2771.5,2771.4,7.21656]
[1724594630517,2.3931,2771.5,2771.4,3.60828]
[1724594633954,2.3931,2771.5,2771.2,3.60842]
[1724594634472,2.3931,2771.5,2771.3,3.60834]
[1724594635022,2.3931,2771.5,2771.2,3.60842]
[1724594635023,2.63241,2771.5,2771.2,3.60842]
[1724594635227,2.63241,2771.5,2771.0,3.60871]
[1724594636064,3.6083,2771.4,2770.8,3.609]
[1724594636228,2.3923,2771.2,2770.8,3.609]
[1724594637028,2.3923,2771.2,2770.8,7.21799]
[1724594637476,2.3923,2771.2,2770.9,3.60892]
[1724594638200,2.3923,2771.2,2771.0,3.60874]
[1724594641198,2.3923,2771.2,2770.8,7.21794]
[1724594641367,2.3923,2771.2,2770.8,3.60897]
[1724594641560,2.3923,2771.2,2770.8,3.60899]
[1724594641895,2.3923,2771.2,2770.8,7.21797]
[1724594642094,2.3923,2771.2,2770.8,3.60898]
[1724594644110,2.3923,2771.2,2770.8,7.21795]
[1724594644392,2.3923,2771.2,2770.8,3.60897]
[1724594644568,2.3923,2771.2,2770.9,3.60892]
[1724594644765,2.3923,2771.2,2771.0,3.60876]
[1724594644967,2.3923,2771.2,2771.0,3.60871]
[1724594645900,2.3445,2771.4,2771.3,3.60837]
[1724594647494,2.3445,2771.4,2771.2,3.60851]
[1724594650902,2.3445,2771.4,2771.0,3.6088]
[1724594651111,2.3445,2771.4,2770.8,3.609]
[1724594651112,2.3445,2771.4,2770.8,3.60897]
[1724594651280,2.3445,2771.2,2770.6,3.60921]
[1724594651474,2.3445,2771.2,2770.7,3.60912]
[1724594652401,2.3445,2771.2,2770.6,3.60921]
[1724594652604,2.3445,2771.2,2770.8,3.60902]
[1724594654464,2.3445,2771.2,2770.8,3.60899]
[1724594654804,2.3445,2771.2,2771.0,3.60871]
[1724594655010,2.3445,2771.2,2771.0,7.21743]
[1724594655180,2.3445,2771.2,2771.0,3.60871]
[1724594656209,2.3445,2771.2,2771.0,3.60868]
[1724594656572,9.8045,2771.4,2771.2,3.60844]
[1724594656813,9.8045,2771.4,2771.2,7.21688]
[1724594656996,9.8045,2771.4,2771.2,3.60844]
[1724594658571,2.3445,2771.4,2771.2,3.60844]
[1724594661869,2.3445,2771.4,2771.0,3.6087]
[1724594662124,2.3445,2771.4,2771.1,0.55]
[1724594662335,2.3445,2771.4,2770.8,3.60898]
[1724594662616,2.3445,2771.3,2770.8,3.60898]
[1724594663320,2.3445,2771.3,2770.8,7.21797]
[1724594663692,2.3445,2771.3,2770.9,3.60892]
[1724594664536,0.06285028,2771.2,2770.9,3.60892]
[1724594664903,0.06285028,2771.2,2770.6,3.60927]
[1724594665102,0.06285028,2771.2,2771.0,3.60872]
[1724594666624,0.06285028,2771.2,2771.1,3.60867]
[1724594666831,2.4702,2771.5,2771.2,3.60851]
[1724594667411,2.4702,2771.5,2771.2,7.21698]
[1724594667612,2.4702,2771.5,2771.2,3.60847]
[1724594667832,2.4702,2771.5,2771.2,7.21692]
[1724594668032,2.4702,2771.5,2771.2,3.60845]
[1724594673688,2.4702,2771.5,2771.1,3.60863]
[1724594673892,2.4702,2771.5,2771.0,3.60868]
[1724594674184,2.4702,2771.5,2771.1,0.55]
[1724594675144,6.07838,2771.5,2770.8,7.21796]
[1724594675344,2.4694,2771.4,2770.9,4.15892]
[1724594675995,2.4694,2771.4,2771.0,3.60879]
[1724594677198,4.36151742,2771.4,2771.0,3.60879]
[1724594677695,2.4694,2771.4,2771.0,3.60879]
[1724594678093,4.36322797,2771.4,2771.0,3.60879]
[1724594680266,4.36322797,2771.4,2771.1,3.60867]
[1724594680483,4.36322797,2771.4,2771.0,7.21744]
[1724594680693,4.36322797,2771.4,2771.0,3.60871]
[1724594680918,4.36322797,2771.4,2771.1,3.60866]
[1724594681204,4.36322797,2771.4,2771.2,3.60853]
[1724594681386,4.36322797,2771.4,2771.0,7.21739]
[1724594681567,4.36322797,2771.4,2771.0,7.994129]
[1724594682586,4.36322797,2771.4,2771.1,3.60866]
[1724594682970,4.36405628,2771.4,2771.1,3.60866]
[1724594683187,1.89465628,2771.3,2771.1,3.60866]
[1724594683458,4.36405628,2771.4,2771.1,3.60866]
[1724594684207,1.89465628,2771.3,2771.1,3.60866]
[1724594684503,4.36405628,2771.4,2771.1,3.60866]
[1724594686554,4.36405628,2771.4,2771.0,3.60868]
[1724594686754,4.36405628,2771.4,2771.0,7.21739]
[1724594687373,0.06284964,2771.3,2771.0,7.21739]
[1724594687972,0.06284964,2771.3,2771.1,3.60866]
[1724594688912,4.36420719,2771.4,2771.1,3.60866]
[1724594695943,4.36458992,2771.4,2771.1,3.60866]
[1724594696530,1.89598992,2771.5,2771.4,3.60828]
[1724594696749,0.0008,2771.5,2771.4,8.33098134]
[1724594696961,0.0008,2771.5,2771.4,10.67528134]
[1724594697098,0.0008,2771.5,2771.4,15.35108947]
[1724594697451,0.0008,2771.5,2771.4,15.35098211]
[1724594697653,0.0008,2771.5,2771.4,11.74270211]
[1724594700646,0.0008,2771.5,2771.4,15.35099733]
[1724594702527,0.0008,2771.5,2771.4,14.78666813]
[1724594702736,2.25920488,2772.0,2771.9,3.60763]
[1724594702883,2.25920488,2772.0,2771.9,7.21526]
[1724594706619,2.25920488,2772.0,2771.9,3.60763]
[1724594707378,2.4739,2772.3,2772.0,3.6074]
[1724594707718,2.4739,2772.3,2772.1,3.60736]
[1724594709819,2.4739,2772.3,2771.9,3.60751]
[1724594710577,2.4739,2772.3,2772.0,3.60746]
[1724594711424,2.4739,2772.3,2772.1,3.60736]
[1724594711579,2.4739,2772.3,2772.2,3.60724]
[1724594712520,2.4739,2772.5,2772.2,3.60724]
[1724594715520,2.4739,2772.5,2772.3,3.6071]
[1724594715910,2.4739,2772.5,2772.1,7.21461]
[1724594716113,2.4739,2772.5,2772.2,3.60723]
[1724594717960,0.06282771,2772.4,2772.2,3.60723]
[1724594721349,0.06282771,2772.4,2772.1,3.60736]
[1724594721684,2.4739,2772.2,2771.4,3.60821]
[1724594721881,2.4739,2772.2,2772.0,3.60749]
[1724594722188,2.4739,2772.2,2772.0,7.21498]
[1724594722354,9.99672771,2772.4,2772.1,3.60737]
[1724594722685,9.9339,2772.4,2772.1,3.60737]
[1724594726893,2.4739,2772.4,2772.1,3.60737]
[1724594728202,2.4739,2772.4,2772.0,3.60748]
[1724594730055,6.08091,2772.4,2771.8,3.60768]
[1724594730257,2.4739,2772.3,2771.8,3.60768]
[1724594730973,2.4739,2772.3,2771.8,3.60767]
[1724594731469,2.4739,2772.3,2771.8,7.21533]
[1724594732211,2.4739,2772.3,2771.8,3.60766]
[1724594732761,6.08101,2772.3,2771.8,3.60766]
[1724594732915,0.968802,2772.2,2771.6,7.21591]
[1724594733114,0.968802,2772.2,2771.7,3.60787]
[1724594733115,3.60724,2772.2,2771.7,3.60787]
[1724594733934,2.4739,2772.3,2771.7,3.60787]
[1724594734274,6.08103,2772.3,2771.7,3.60787]
[1724594735148,7.97076935,2772.3,2771.7,3.60787]
[1724594735314,9.12854728,2772.3,2771.7,3.60787]
[1724594735676,2.4739,2772.1,2771.7,3.60787]
[1724594736749,3.60738,2772.1,2771.5,3.60812]
[1724594736947,2.4739,2772.0,2771.5,3.60806]
[1724594737144,2.4739,2772.0,2771.5,7.21613]
[1724594737461,2.4739,2772.0,2771.5,3.60806]
[1724594738157,2.4739,2772.0,2771.6,3.60794]
[1724594738466,2.4739,2772.0,2771.5,3.60806]
[1724594738676,2.4739,2772.0,2771.5,7.21613]
[1724594738832,2.4739,2772.0,2771.6,3.60798]
[1724594739217,2.4739,2772.0,2771.6,3.968778]
[1724594739457,2.4739,2772.0,2771.8,3.60776]
[1724594741860,1.88973935,2772.1,2771.8,3.60776]
[1724594742472,1.88973935,2772.1,2771.9,3.60763]
[1724594742827,4.36363935,2772.2,2771.9,3.60763]
[1724594744003,4.36712472,2772.2,2771.9,3.60763]
[1724594745289,2.4739,2772.2,2771.9,3.60763]
[1724594745481,4.36712472,2772.2,2771.9,3.60763]
[1724594749785,4.36712472,2772.2,2771.8,3.60776]
[1724594749953,4.36712472,2772.2,2771.6,3.60792]
[1724594750160,1.89322472,2772.1,2771.7,3.60788]
[1724594751179,6.08114,2772.2,2771.7,3.60788]
[1724594751180,7.97436472,2772.2,2771.7,3.60788]
[1724594752400,1.89322472,2772.1,2771.7,3.60788]
[1724594752896,1.89322472,2772.1,2771.7,7.21568]
[1724594753345,1.89322472,2772.1,2771.7,3.6078]
[1724594753543,4.36712472,2772.2,2771.7,3.6078]
[1724594753783,1.89322472,2772.1,2771.7,7.21562]
[1724594754201,4.36712472,2772.2,2771.7,3.6078]
[1724594755015,1.89322472,2772.1,2771.7,3.6078]
[1724594755344,4.36712472,2772.2,2771.7,3.6078]
[1724594755898,4.36712472,2772.2,2771.5,3.60807]
[1724594755899,5.50087665,2772.1,2771.5,3.60807]
[1724594756208,8.21245944,2772.2,2771.5,3.60807]
[1724594756209,1.89342665,2772.0,2771.6,3.608]
[1724594758334,6.08122,2772.2,2771.6,3.608]
[1724594758519,1.89337301,2772.0,2771.6,3.608]
[1724594760918,1.89337301,2772.0,2771.4,9.53205]
[1724594761117,1.89337301,2772.0,2771.4,5.92378]
[1724594761872,1.89335724,2772.0,2771.4,5.92378]
[1724594762159,1.89335724,2772.0,2771.6,3.60801]
[1724594763333,0.06284216,2771.9,2771.6,3.60801]
[1724594764238,0.06284216,2771.9,2771.4,5.92378]
[1724594764450,1.9561994,2771.9,2771.4,5.92379]
[1724594765866,4.2768994,2771.9,2771.4,3.60819]
[1724594766565,4.27718313,2771.9,2771.4,3.60819]
[1724594766924,7.88483313,2771.9,2771.4,3.60819]
[1724594767439,9.26129736,2771.9,2771.4,3.60819]
[1724594768161,3.60781,2771.8,2771.2,6.06565]
[1724594768362,1.89364097,2771.8,2771.3,3.60841]
[1724594768944,1.89364097,2771.7,2771.3,3.60841]
[1724594769267,5.99119216,2771.9,2771.3,3.60841]
[1724594769268,1.89364097,2771.8,2771.3,3.60841]
[1724594769770,1.89364097,2771.7,2771.3,3.60841]
[1724594770139,1.89364097,2771.8,2771.3,3.60841]
[1724594770525,1.89364097,2771.8,2770.6,1.85243119]
[1724594770526,4.21434097,2771.7,2770.9,2.79326367]
[1724594770739,2.3207,2771.1,2770.6,3.60925]
[1724594770964,5.92938,2771.1,2770.6,3.60925]
[1724594771535,2.3207,2771.1,2770.6,3.60925]
[1724594771935,5.92938,2771.1,2770.4,3.60949]
[1724594772375,5.92938,2771.1,2770.2,6.06694]
[1724594772539,3.60901,2770.9,2770.2,6.76381304]
[1724594773054,2.3207,2770.7,2770.2,7.21948]
[1724594773487,2.3207,2770.7,2769.9,7.22031]
[1724594773696,2.3207,2770.7,2769.9,3.61013]
[1724594774000,3.6094,2770.6,2770.0,3.61003]
[1724594774302,3.6094,2770.6,2769.9,3.61013]
[1724594774303,3.60948,2770.5,2769.9,3.61013]
[1724594774760,5.93049,2770.3,2769.4,3.61082]
[1724594774965,3.60985,2770.2,2769.5,3.61066]